fUST/lending_fUST_20251013
["ID","MTS","AMOUNT","RATE_DAILY","PERIOD"]
[391087765,1760315439851,-1775.81873451,0.0002969,2]
[391087766,1760315439862,-1018.95959998,0.0002969,2]
[391087804,1760315443679,-339.1559374,0.00027773,2]
[391087805,1760315443839,-71.8440626,0.00027773,2]
[391087806,1760315443849,-686.16840838,0.00028766,10]
[391087834,1760315446517,-313.83159162,0.00028766,10]
[391087835,1760315446527,-1714.00919805,0.0002969,2]
[391087836,1760315446538,-1075.6164,0.0002969,2]
[391087837,1760315446550,-1075.6164,0.0002969,2]
[391087842,1760315446703,239.46,0.0002739,120]
[391087845,1760315713474,150.0,0.00020971,2]
[391087853,1760316615366,186.21822421,0.000209,2]
[391087904,1760316632700,-150.0,0.00021,2]
[391087906,1760316632709,-166.7203198,0.00021,2]
[391087908,1760316632719,-300.0,0.00021,2]
[391087910,1760316632728,-172.5,0.000216,2]
[391087912,1760316632737,-195.0,0.000222,2]
[391087914,1760316632747,-217.5,0.000228,2]
[391087916,1760316632756,-20.99252565,0.00023073,2]
[391087918,1760316632767,-545.18028167,0.00023073,2]
[391087920,1760316632779,-99.82719268,0.00023073,2]
[391087922,1760316632788,-178.11744955,0.000234,2]
[391087924,1760316632799,-61.88255045,0.000234,2]
[391087926,1760316632808,-262.5,0.00024,2]
[391087928,1760316632824,-1200.0,0.00024474,2]
[391087930,1760316632833,-160.0,0.00024474,2]
[391087933,1760316632843,-402.2877588,0.00024474,2]
[391087935,1760316632852,-1607.26406448,0.00024475,2]
[391087940,1760316632897,-258.22366975,0.00024475,2]
[391088042,1760316638594,-1461.47744354,0.00024475,2]
[391088043,1760316638605,-11212.34046834,0.00024475,2]
[391088044,1760316638616,-5040.0,0.00024475,2]
[391088045,1760316638628,-2270.28258202,0.00024475,2]
[391088046,1760316638700,-22121.6755061,0.00024475,2]
[391088047,1760316638710,-500.0,0.00024476,2]
[391088048,1760316638720,-500.0,0.00024476,2]
[391088049,1760316638729,-500.0,0.00024476,2]
[391088050,1760316638739,-156.20388748,0.00024476,2]
[391088051,1760316638749,-500.0,0.00024476,2]
[391088052,1760316638759,-500.0,0.00024476,2]
[391088053,1760316638768,-500.0,0.00024476,2]
[391088054,1760316638777,-500.0,0.00024476,2]
[391088055,1760316638787,-500.0,0.00024476,2]
[391088056,1760316638796,-500.0,0.00024476,2]
[391088057,1760316638806,-500.0,0.00024476,2]
[391088058,1760316638816,-500.0,0.00024476,2]
[391088059,1760316638826,-500.0,0.00024476,2]
[391088060,1760316638835,-466.04600735,0.00024476,2]
[391088061,1760316638845,-500.0,0.00024476,2]
[391088062,1760316638856,-500.0,0.00024476,2]
[391088063,1760316638865,-397.70030911,0.00024476,2]
[391088064,1760316638875,-500.0,0.00024476,2]
[391088065,1760316638884,-500.0,0.00024476,2]
[391088066,1760316638894,-201.38765491,0.00024476,2]
[391088067,1760316638903,-500.0,0.00024476,2]
[391088068,1760316638913,-500.0,0.00024476,2]
[391088069,1760316638923,-500.0,0.00024476,2]
[391088070,1760316638932,-500.0,0.00024476,2]
[391088071,1760316638942,-500.0,0.00024476,2]
[391088072,1760316638951,-500.0,0.00024476,2]
[391088073,1760316638960,-500.0,0.00024476,2]
[391088074,1760316638970,-500.0,0.00024476,2]
[391088075,1760316638979,-500.0,0.00024476,2]
[391088076,1760316638988,-500.0,0.00024476,2]
[391088077,1760316638997,-500.0,0.00024476,2]
[391088078,1760316639007,-500.0,0.00024476,2]
[391088079,1760316639017,-500.0,0.00024476,2]
[391088080,1760316639027,-314.80332612,0.00024476,2]
[391088081,1760316639037,-204.96195992,0.00024476,2]
[391088082,1760316639049,-500.0,0.00024476,2]
[391088083,1760316639059,-500.0,0.00024476,2]
[391088084,1760316639068,-500.0,0.00024476,2]
[391088085,1760316639077,-500.0,0.00024477,2]
[391088086,1760316639089,-483.0,0.00024477,2]
[391088087,1760316639099,-300.0,0.00024478,20]
[391088088,1760316639108,-300.0,0.00024478,20]
[391088089,1760316639119,-300.0,0.00024478,20]
[391088090,1760316639129,-300.0,0.00024478,20]
[391088091,1760316639139,-300.0,0.00024478,20]
[391088092,1760316639148,-300.0,0.00024478,20]
[391088093,1760316639157,-300.0,0.00024478,20]
[391088094,1760316639166,-300.0,0.00024478,20]
[391088095,1760316639175,-300.0,0.00024478,20]
[391088096,1760316639184,-300.0,0.00024478,20]
[391088097,1760316639193,-300.0,0.00024478,20]
[391088098,1760316639202,-300.0,0.00024478,20]
[391088099,1760316639212,-300.0,0.00024478,20]
[391088100,1760316639221,-300.0,0.00024478,20]
[391088101,1760316639230,-300.0,0.00024478,20]
[391088102,1760316639239,-600.0,0.00024478,20]
[391088103,1760316639249,-285.0,0.000246,2]
[391088104,1760316639258,-173.758,0.00024999,8]
[391088105,1760316639268,-197.34252736,0.000252,2]
[391088106,1760316639277,-181.34526,0.00026494,2]
[391088107,1760316639287,-191.0,0.00026648,2]
[391088108,1760316639296,-500.0,0.00026794,2]
[391088109,1760316639305,-500.19994402,0.00026794,2]
[391088110,1760316639315,-265.49880308,0.00026794,2]
[391088111,1760316639324,-500.0,0.00026794,2]
[391088112,1760316639333,-720.0,0.00026926,30]
[391088113,1760316639342,-984.3,0.0002698,10]
[391088114,1760316639351,-500.50182678,0.00026988,2]
[391088115,1760316639360,-342.62802372,0.00026988,2]
[391088116,1760316639371,-500.0,0.00026988,2]
[391088117,1760316639380,-500.0,0.00026988,2]
[391088118,1760316639390,-229.58034146,0.00026988,2]
[391088119,1760316639399,-500.0,0.00026988,2]
[391088120,1760316639408,-500.0,0.00026988,2]
[391088121,1760316639417,-484.84792813,0.00026989,2]
[391088122,1760316639426,-303.74830522,0.00026989,2]
[391088123,1760316639435,-85882.78575261,0.0002699,2]
[391088124,1760316639444,-600.0,0.00027253,2]
[391088125,1760316639453,-1000.0,0.00027342,2]
[391088126,1760316639463,-500.0,0.00027536,5]
[391088127,1760316639471,-500.0,0.00027536,5]
[391088128,1760316639482,-1000.0,0.00027536,5]
[391088129,1760316639491,-2088.78532203,0.00027642,2]
[391088130,1760316639501,-500.66522529,0.00027769,5]
[391088131,1760316639510,-500.0,0.00027769,5]
[391088132,1760316639521,-8010.0,0.00027773,2]
[391088133,1760316639533,-981.0,0.00027773,2]
[391088134,1760316639543,-630.0,0.00027773,2]
[391088135,1760316639557,-2160.0,0.00027773,2]
[391088136,1760316639568,-250.0,0.00027773,2]
[391088137,1760316639577,-411.0,0.00027773,2]
[391088138,1760316639586,-415.782,0.00027773,2]
[391088139,1760316639596,-212.785,0.00027773,2]
[391088140,1760316639605,-153.0,0.00027802,2]
[391088141,1760316639615,-153.0,0.00027802,2]
[391088142,1760316639625,-153.0,0.00027802,2]
[391088143,1760316639634,-153.0,0.00027802,2]
[391088144,1760316639643,-153.0,0.00027803,2]
[391088145,1760316639653,-153.0,0.00027803,2]
[391088146,1760316639664,-153.0,0.00027807,2]
[391088147,1760316639673,-153.0,0.00027808,2]
[391088148,1760316639682,-354.16488193,0.00027878,2]
[391088149,1760316639691,-1081.16712208,0.0002788,2]
[391088150,1760316639700,-1500.0,0.0002789,5]
[391088151,1760316639710,-160.0,0.00027933,2]
[391088152,1760316639720,-127330.75760865,0.0002797,2]
[391088153,1760316639733,-9144.02887332,0.0002797,2]
[391088154,1760316639745,-970.77949872,0.0002797,2]
[391088155,1760316639758,-1428.02847531,0.0002797,2]
[391088156,1760316639766,-377.0,0.0002798,3]
[391088157,1760316639776,-138873.594456,0.0002798,2]
[391088158,1760316639786,-500.0,0.00027982,5]
[391088159,1760316639796,-151.0,0.0002799,2]
[391088160,1760316639806,-1500.0,0.00028084,5]
[391088161,1760316639816,-1000.0,0.00028305,2]
[391088162,1760316639827,-1000.0,0.00028305,2]
[391088163,1760316639837,-1000.0,0.00028305,2]
[391088164,1760316639847,-1000.0,0.00028305,2]
[391088165,1760316639857,-1000.0,0.00028305,2]
[391088166,1760316639868,-1000.0,0.00028305,2]
[391088167,1760316639880,-1000.0,0.00028305,2]
[391088168,1760316639889,-1000.0,0.00028305,2]
[391088169,1760316639900,-1000.0,0.00028305,2]
[391088170,1760316639910,-1000.0,0.00028305,2]
[391088171,1760316639920,-1000.0,0.00028305,2]
[391088172,1760316639929,-1000.0,0.00028305,2]
[391088173,1760316639939,-1000.0,0.00028305,2]
[391088174,1760316639948,-1000.0,0.00028305,2]
[391088175,1760316639957,-1000.0,0.00028305,2]
[391088176,1760316639972,-1000.0,0.00028305,2]
[391088177,1760316639981,-567.506112,0.00028305,2]
[391088178,1760316639991,-138873.594456,0.00028305,2]
[391088179,1760316640001,-18603.8837,0.00028315,2]
[391088180,1760316640010,-250.0,0.00028315,2]
[391088181,1760316640020,-250.0,0.00028315,2]
[391088182,1760316640029,-250.0,0.00028315,2]
[391088183,1760316640039,-250.0,0.00028315,2]
[391088184,1760316640049,-250.0,0.00028315,2]
[391088185,1760316640062,-500.0,0.00028315,2]
[391088186,1760316640073,-500.0,0.00028315,2]
[391088187,1760316640087,-500.0,0.00028315,2]
[391088188,1760316640096,-500.0,0.00028315,2]
[391088189,1760316640108,-500.0,0.00028315,2]
[391088190,1760316640119,-500.0,0.00028315,2]
[391088191,1760316640131,-159.50572267,0.00028315,2]
[391088192,1760316640140,-600.0,0.00028349,7]
[391088193,1760316640149,-5032.86864926,0.00028356,2]
[391088194,1760316640159,-168.0,0.00028413,2]
[391088195,1760316640169,-2000.0,0.00028438,5]
[391088196,1760316640179,-138873.594456,0.00028446,2]
[391088197,1760316640189,-168.0,0.00028456,2]
[391088198,1760316640199,-151.171017,0.00028456,2]
[391088199,1760316640210,-260.0,0.00028481,2]
[391088200,1760316640345,-1081.16712206,0.00028501,2]
[391088201,1760316640358,-1013.7,0.00028553,49]
[391088202,1760316640368,-1471.0,0.00028553,49]
[391088203,1760316640377,-500.0,0.00028632,5]
[391088204,1760316640386,-168.0,0.00028698,2]
[391088205,1760316640395,-158.0,0.000287,33]
[391088206,1760316640405,-999.0,0.00028775,2]
[391088207,1760316640414,-1091.44693364,0.00028799,2]
[391088208,1760316640423,-10331.44182265,0.00028863,2]
[391088209,1760316640433,-1000.0,0.00028874,5]
[391088210,1760316640441,-168.0,0.00028928,2]
[391088211,1760316640451,-2500.0,0.00028986,5]
[391088212,1760316640460,-172.098624,0.0002899,2]
[391088213,1760316640469,-172.098624,0.0002899,2]
[391088214,1760316640478,-172.098624,0.0002899,2]
[391088215,1760316640487,-172.098624,0.0002899,2]
[391088216,1760316640496,-1016.76,0.00029,2]
[391088217,1760316640505,-360.0,0.00029029,2]
[391088218,1760316640514,-162.79830866,0.00029068,30]
[391088219,1760316640523,-155.995815,0.0002911,10]
[391088220,1760316640532,-1081.16712206,0.00029122,2]
[391088221,1760316640542,-600.0,0.00029171,7]
[391088222,1760316640551,-332.10225954,0.00029174,2]
[391088224,1760316640560,-1016.76,0.00029174,2]
[391088225,1760316640569,-172.098624,0.00029301,2]
[391088226,1760316640579,-172.098624,0.00029301,2]
[391088227,1760316640588,-172.098624,0.00029301,2]
[391088228,1760316640597,-172.098624,0.00029301,2]
[391088229,1760316640607,-1308.7371439,0.00029311,2]
[391088230,1760316640616,-10001.5307322,0.00029311,2]
[391088231,1760316640627,-155.995815,0.00029323,7]
[391088232,1760316640638,-1016.76,0.00029348,2]
[391088233,1760316640647,-155.995815,0.00029349,2]
[391088234,1760316640657,-5032.86864925,0.0002936,2]
[391088235,1760316640666,-155.995815,0.000294,10]
[391088236,1760316640674,-155.995815,0.000294,7]
[391088237,1760316640684,-162.79830866,0.00029452,30]
[391088238,1760316640693,-168.0,0.00029514,2]
[391088239,1760316640702,-3000.0,0.00029534,5]
[391088240,1760316640712,-400.0,0.00029577,2]
[391088241,1760316640721,-158.0,0.000296,33]
[391088242,1760316640730,-158.0,0.000296,120]
[391088243,1760316640739,-864.0,0.00029618,30]
[391088244,1760316640749,-160.0,0.00029655,5]
[391088245,1760316640758,-155.995815,0.0002968,20]
[391088246,1760316640767,-1711.6,0.000297,2]
[391088247,1760316640776,-168.0,0.00029715,2]
[391088248,1760316640785,-1081.16712206,0.00029742,2]
[391088250,1760316640794,-200.0,0.0002977,24]
[391088252,1760316640803,-172.098624,0.00029775,2]
[391088254,1760316640813,-172.098624,0.00029775,2]
[391088255,1760316640823,-172.098624,0.00029775,2]
[391088256,1760316640832,-172.098624,0.00029775,2]
[391088257,1760316640841,-26357.23,0.000298,7]
[391088258,1760316640850,-162.79830866,0.00029808,30]
[391088259,1760316640860,-162.9132687,0.00029863,30]
[391088260,1760316640869,-1203.2432387,0.00029863,30]
[391088261,1760316640881,-297.9509383,0.00029863,30]
[391088262,1760316640890,-162.9132687,0.00029863,30]
[391088263,1760316640900,-297.9509383,0.00029863,30]
[391088264,1760316640910,-162.9132687,0.00029863,30]
[391088265,1760316640919,-297.9509383,0.00029863,30]
[391088266,1760316640929,-5000.0,0.00029885,30]
[391088267,1760316640939,-5000.0,0.00029885,30]
[391088268,1760316640948,-5000.0,0.00029885,30]
[391088269,1760316640958,-5000.0,0.00029885,30]
[391088270,1760316640967,-5000.0,0.00029885,30]
[391088271,1760316640976,-5000.0,0.00029885,30]
[391088272,1760316640986,-4546.01,0.00029885,30]
[391088273,1760316640995,-168.0,0.00029959,2]
[391088274,1760316641006,-600.0,0.00029993,7]
[391088275,1760316641015,-5000.0,0.0003,6]
[391088276,1760316641024,-2000.0,0.0003,8]
[391088277,1760316641033,-18305.40826948,0.0003,10]
[391088278,1760316641043,-172.098624,0.00030025,2]
[391088279,1760316641056,-172.098624,0.00030025,2]
[391088280,1760316641066,-172.098624,0.00030025,2]
[391088281,1760316641076,-172.098624,0.00030025,2]
[391088282,1760316641086,-172.098624,0.00030025,2]
[391088283,1760316641097,-172.098624,0.00030025,2]
[391088284,1760316641107,-172.098624,0.00030025,2]
[391088285,1760316641116,-172.098624,0.00030025,2]
[391088286,1760316641125,-176.97217133,0.00030036,2]
[391088287,1760316641139,-168.0,0.00030061,2]
[391088288,1760316641148,-500.0,0.00030073,5]
[391088289,1760316641157,-168.0,0.00030075,2]
[391088290,1760316641167,-3500.0,0.00030082,5]
[391088291,1760316641176,-4597.62,0.000301,2]
[391088292,1760316641185,-520.0,0.00030136,3]
[391088294,1760316641194,-520.0,0.00030136,3]
[391088295,1760316641203,-150.0,0.00030136,120]
[391088297,1760316641212,-1000.0,0.00030136,2]
[391088298,1760316641221,-500.0,0.00030136,21]
[391088299,1760316641230,-500.0,0.00030136,21]
[391088300,1760316641239,-634.23760085,0.00030136,21]
[391088301,1760316641248,-500.0,0.00030136,21]
[391088302,1760316641257,-203.47,0.00030136,21]
[391088303,1760316641266,-500.0,0.00030136,21]
[391088304,1760316641275,-500.0,0.00030136,21]
[391088305,1760316641284,-500.0,0.00030136,21]
[391088306,1760316641292,-619.32,0.00030136,21]
[391088307,1760316641302,-500.0,0.00030136,21]
[391088308,1760316641311,-500.0,0.00030136,21]
[391088309,1760316641322,-500.0,0.00030136,21]
[391088310,1760316641331,-500.0,0.00030136,21]
[391088311,1760316641340,-500.0,0.00030136,21]
[391088312,1760316641348,-500.0,0.00030136,21]
[391088313,1760316641358,-500.0,0.00030136,21]
[391088314,1760316641367,-500.0,0.00030136,21]
[391088315,1760316641379,-500.0,0.00030136,21]
[391088316,1760316641388,-500.0,0.00030136,21]
[391088317,1760316641397,-500.0,0.00030136,21]
[391088318,1760316641406,-500.0,0.00030136,21]
[391088319,1760316641415,-500.0,0.00030136,21]
[391088320,1760316641423,-500.0,0.00030136,21]
[391088321,1760316641433,-500.0,0.00030136,21]
[391088322,1760316641442,-500.0,0.00030136,21]
[391088323,1760316641451,-355.64,0.00030136,21]
[391088324,1760316641459,-500.0,0.00030136,21]
[391088325,1760316641468,-594.64903624,0.00030136,21]
[391088326,1760316641477,-500.0,0.00030136,21]
[391088327,1760316641486,-556.23,0.00030136,21]
[391088328,1760316641495,-500.0,0.00030136,21]
[391088329,1760316641503,-500.0,0.00030136,21]
[391088330,1760316641512,-500.0,0.00030136,21]
[391088331,1760316641521,-638.48,0.00030136,21]
[391088332,1760316641530,-483.08671497,0.00030136,21]
[391088333,1760316641539,-548.21789205,0.00030136,21]
[391088334,1760316641548,-500.0,0.00030136,21]
[391088335,1760316641557,-500.0,0.00030136,21]
[391088336,1760316641566,-500.0,0.00030136,21]
[391088337,1760316641575,-620.65,0.00030136,21]
[391088338,1760316641584,-608.92,0.00030136,21]
[391088339,1760316641593,-500.0,0.00030136,21]
[391088340,1760316641602,-500.0,0.00030136,21]
[391088341,1760316641611,-157.35390662,0.00030136,21]
[391088342,1760316641621,-500.0,0.00030136,21]
[391088343,1760316641633,-500.0,0.00030136,21]
[391088344,1760316641643,-500.0,0.00030136,21]
[391088345,1760316641652,-500.0,0.00030136,21]
[391088346,1760316641661,-500.0,0.00030136,21]
[391088347,1760316641672,-500.0,0.00030136,21]
[391088348,1760316641681,-500.0,0.00030136,21]
[391088349,1760316641691,-500.0,0.00030136,21]
[391088350,1760316641702,-500.0,0.00030136,21]
[391088351,1760316641712,-488.54,0.00030136,21]
[391088352,1760316641722,-500.0,0.00030136,21]
[391088353,1760316641732,-500.0,0.00030136,21]
[391088354,1760316641743,-277.67,0.00030136,21]
[391088355,1760316641752,-500.0248,0.00030136,21]
[391088356,1760316641763,-500.0,0.00030136,21]
[391088357,1760316641773,-500.0,0.00030136,21]
[391088358,1760316641782,-447.90811794,0.00030136,21]
[391088359,1760316641792,-500.0,0.00030136,21]
[391088360,1760316641802,-500.0,0.00030136,21]
[391088361,1760316641812,-500.0,0.00030136,21]
[391088362,1760316641821,-500.0,0.00030136,21]
[391088363,1760316641831,-500.0,0.00030136,21]
[391088364,1760316641840,-289.0,0.00030136,21]
[391088365,1760316641850,-580.14,0.00030136,21]
[391088366,1760316641860,-603.06,0.00030136,21]
[391088367,1760316641869,-527.04,0.00030136,21]
[391088368,1760316641883,-500.0,0.00030136,21]
[391088369,1760316641892,-500.0,0.00030136,21]
[391088370,1760316641902,-471.33,0.00030136,21]
[391088371,1760316641913,-500.0,0.00030136,21]
[391088372,1760316641923,-500.0,0.00030136,21]
[391088373,1760316641932,-500.0,0.00030136,21]
[391088374,1760316641942,-500.0,0.00030136,21]
[391088375,1760316641952,-500.0,0.00030136,21]
[391088376,1760316641963,-247.65,0.00030136,21]
[391088377,1760316641973,-500.0,0.00030136,21]
[391088378,1760316641982,-361.94,0.00030136,21]
[391088379,1760316641992,-500.0,0.00030136,21]
[391088380,1760316642002,-500.0,0.00030136,21]
[391088381,1760316642012,-294.63,0.00030136,21]
[391088382,1760316642022,-500.0,0.00030136,21]
[391088383,1760316642032,-500.0,0.00030136,21]
[391088384,1760316642042,-327.17,0.00030136,21]
[391088385,1760316642057,-500.0,0.00030136,21]
[391088386,1760316642066,-463.0152943,0.00030136,21]
[391088387,1760316642077,-500.0,0.00030136,21]
[391088388,1760316642087,-500.0,0.00030136,2]
[391088389,1760316642097,-580.92,0.00030136,21]
[391088390,1760316642108,-500.0,0.00030136,21]
[391088391,1760316642120,-500.0,0.00030136,21]
[391088392,1760316642134,-500.0,0.00030136,21]
[391088393,1760316642143,-500.0,0.00030136,21]
[391088394,1760316642152,-500.0,0.00030136,21]
[391088395,1760316642161,-500.0,0.00030136,21]
[391088396,1760316642170,-500.0,0.00030136,21]
[391088397,1760316642179,-500.0,0.00030136,21]
[391088398,1760316642188,-500.0,0.00030136,21]
[391088399,1760316642197,-195.36,0.00030136,21]
[391088400,1760316642206,-502.38,0.00030136,21]
[391088401,1760316642215,-500.0,0.00030136,21]
[391088402,1760316642224,-377.57,0.00030136,21]
[391088403,1760316642233,-500.0,0.00030136,21]
[391088404,1760316642243,-500.0,0.00030136,21]
[391088405,1760316642252,-460.32,0.00030136,21]
[391088406,1760316642261,-200.0,0.00030136,7]
[391088407,1760316642270,-500.0,0.00030136,21]
[391088408,1760316642279,-500.0,0.00030136,21]
[391088409,1760316642288,-500.0,0.00030136,21]
[391088410,1760316642297,-500.0,0.00030136,21]
[391088411,1760316642306,-586.33,0.00030136,21]
[391088412,1760316642315,-500.0,0.00030136,21]
[391088413,1760316642324,-500.0,0.00030136,21]
[391088414,1760316642332,-500.0,0.00030136,21]
[391088415,1760316642341,-500.0,0.00030136,21]
[391088416,1760316642350,-526.65,0.00030136,21]
[391088417,1760316642359,-331.11396417,0.00030136,2]
[391088418,1760316642368,-500.0,0.00030136,21]
[391088419,1760316642377,-500.0,0.00030136,21]
[391088420,1760316642387,-500.0,0.00030136,21]
[391088421,1760316642396,-500.0,0.00030136,21]
[391088422,1760316642405,-500.0,0.00030136,21]
[391088423,1760316642415,-500.0,0.00030136,21]
[391088424,1760316642424,-500.0,0.00030136,21]
[391088425,1760316642433,-500.0,0.00030136,21]
[391088426,1760316642442,-239.45,0.00030136,21]
[391088427,1760316642451,-555.02,0.00030136,21]
[391088428,1760316642460,-500.0,0.00030136,21]
[391088429,1760316642469,-500.0,0.00030136,21]
[391088430,1760316642479,-500.0,0.00030136,21]
[391088431,1760316642488,-500.0,0.00030136,21]
[391088432,1760316642497,-500.0,0.00030136,21]
[391088433,1760316642507,-500.0,0.00030136,21]
[391088434,1760316642516,-500.0,0.00030136,21]
[391088435,1760316642525,-500.0,0.00030136,21]
[391088436,1760316642535,-500.0,0.00030136,21]
[391088437,1760316642544,-500.0,0.00030136,21]
[391088438,1760316642554,-500.0,0.00030136,21]
[391088439,1760316642563,-500.0,0.00030136,21]
[391088440,1760316642572,-500.0,0.00030136,21]
[391088441,1760316642582,-500.0,0.00030136,21]
[391088442,1760316642591,-500.0,0.00030136,21]
[391088443,1760316642600,-500.0,0.00030136,21]
[391088444,1760316642610,-500.0,0.00030136,21]
[391088445,1760316642619,-500.0,0.00030136,21]
[391088446,1760316642628,-500.0,0.00030136,21]
[391088447,1760316642640,-500.0,0.00030136,21]
[391088448,1760316642649,-500.0,0.00030136,21]
[391088449,1760316642658,-500.0,0.00030136,21]
[391088450,1760316642667,-500.0,0.00030136,21]
[391088451,1760316642676,-500.0,0.00030136,21]
[391088452,1760316642685,-500.0,0.00030136,21]
[391088453,1760316642694,-623.76,0.00030136,21]
[391088454,1760316642703,-500.0,0.00030136,21]
[391088455,1760316642712,-500.0,0.00030136,21]
[391088456,1760316642721,-500.0,0.00030136,21]
[391088457,1760316642731,-500.0,0.00030136,21]
[391088458,1760316642740,-500.0,0.00030136,21]
[391088459,1760316642749,-500.0,0.00030136,21]
[391088460,1760316642758,-500.0,0.00030136,21]
[391088461,1760316642768,-153.28,0.00030136,21]
[391088462,1760316642777,-549.72,0.00030136,21]
[391088463,1760316642786,-549.72,0.00030136,21]
[391088464,1760316642795,-549.72,0.00030136,21]
[391088465,1760316642805,-549.72,0.00030136,21]
[391088466,1760316642814,-549.72,0.00030136,21]
[391088467,1760316642824,-549.72,0.00030136,21]
[391088468,1760316642833,-549.72,0.00030136,21]
[391088469,1760316642843,-549.72,0.00030136,21]
[391088470,1760316642852,-549.72,0.00030136,21]
[391088471,1760316642861,-549.72,0.00030136,21]
[391088472,1760316642871,-549.72,0.00030136,21]
[391088473,1760316642882,-549.72,0.00030136,21]
[391088474,1760316642892,-549.72,0.00030136,21]
[391088475,1760316642901,-549.72,0.00030136,21]
[391088476,1760316642911,-549.72,0.00030136,21]
[391088477,1760316642920,-549.72,0.00030136,21]
[391088478,1760316642930,-549.72,0.00030136,21]
[391088479,1760316642939,-549.72,0.00030136,21]
[391088480,1760316642948,-549.72,0.00030136,21]
[391088481,1760316642958,-549.72,0.00030136,21]
[391088482,1760316642979,-549.72,0.00030136,21]
[391088483,1760316642990,-549.72,0.00030136,21]
[391088484,1760316643000,-549.72,0.00030136,21]
[391088485,1760316643009,-549.78,0.00030136,21]
[391088486,1760316643019,-500.0,0.00030136,21]
[391088487,1760316643028,-500.0,0.00030136,21]
[391088488,1760316643037,-500.0,0.00030136,21]
[391088489,1760316643048,-500.0,0.00030136,21]
[391088490,1760316643060,-511.44,0.00030136,21]
[391088491,1760316643069,-500.0,0.00030136,21]
[391088493,1760316643079,-511.44,0.00030136,21]
[391088494,1760316643088,-500.0,0.00030136,21]
[391088495,1760316643098,-511.44,0.00030136,21]
[391088496,1760316643107,-500.0,0.00030136,21]
[391088497,1760316643117,-511.44,0.00030136,21]
[391088498,1760316643126,-500.0,0.00030136,21]
[391088499,1760316643139,-511.44,0.00030136,21]
[391088500,1760316643149,-511.44,0.00030136,21]
[391088501,1760316643158,-500.0,0.00030136,21]
[391088502,1760316643168,-511.44,0.00030136,21]
[391088503,1760316643177,-500.0,0.00030136,21]
[391088504,1760316643187,-511.44,0.00030136,21]
[391088505,1760316643196,-500.0,0.00030136,21]
[391088506,1760316643205,-511.44,0.00030136,21]
[391088507,1760316643215,-500.0,0.00030136,21]
[391088508,1760316643224,-511.44,0.00030136,21]
[391088509,1760316643233,-511.44,0.00030136,21]
[391088510,1760316643243,-640.07,0.00030136,21]
[391088511,1760316643252,-511.44,0.00030136,21]
[391088512,1760316643262,-511.44,0.00030136,21]
[391088513,1760316643271,-511.44,0.00030136,21]
[391088514,1760316643282,-511.44,0.00030136,21]
[391088515,1760316643291,-511.44,0.00030136,21]
[391088516,1760316643300,-511.44,0.00030136,21]
[391088517,1760316643309,-511.44,0.00030136,21]
[391088518,1760316643319,-511.44,0.00030136,21]
[391088519,1760316643430,-500.0,0.00030136,21]